Cogmind - Beta 14 @@@ ROGUE MODE // 2025.03.11 @ 16:23:22 Player: MarKhan Result: Destroyed by B-75 Beast with Magnetic Acceleration Cannon Performance ------------- Evolutions (2) 1000 Regions Visited (10) 2000 Robots Destroyed (134) 670 Value Destroyed (4312) 4312 Prototype IDs (34) 680 Alien Tech Used (0) 0 Bonus (2668) 2668 TOTAL SCORE: 11330 Bonus ------- High Alert Combat Kills 323 Follower Combat Kills 145 Entered Garrisons 400 Used RIF Installer 1500 Aligned with FarCom 300 Cogmind --------- Core Integrity 0/550 Matter 217/300 Energy 150/150 System Corruption 3% Temperature Cool (0) Movement Treading (162) Location -8/Garrison Parts ------- > --- POWER (1) -------- Micro Fission Core > --- PROPULSION (4) --- Light Treads Light Treads Light Treads Armored Medium Treads > --- UTILITY (3) ------ High-capacity Storage Unit Hacking Suite Hacking Suite > --- WEAPON (3) ------- High-powered Shotgun Gauss Rifle > --- INVENTORY (20) --- Light Treads Light Treads Light Treads Light Treads Light Treads Improved Cooling System Improved Cooling System Improved Cooling System Large Matter Pod (150) Structural Scanner Hacking Suite Relay Coupler [Hunter] (19) Sensor Drone Bay (20/20) Plasma Cannon Plasma Cannon Plasma Cannon YOLO Cannon Rocket Launcher Chainsword Peak State ------------ > --- POWER ------------ Micro Fission Core > --- PROPULSION ------- Light Treads Light Treads Light Treads Armored Medium Treads > --- UTILITY ---------- High-capacity Storage Unit Hacking Suite Hacking Suite > --- WEAPON ----------- High-powered Shotgun Gauss Rifle Heavy Machine Gun > --- INVENTORY -------- Light Treads Light Treads Light Treads Light Treads Light Treads Improved Cooling System Improved Cooling System Improved Cooling System Large Matter Pod Structural Scanner Hacking Suite Relay Coupler [Hunter] Sensor Drone Bay Plasma Cannon Plasma Cannon Plasma Cannon YOLO Cannon Rocket Launcher Chainsword [Rating: 41] Favorites ----------- Power Light Nuclear Core Engine Hybrid Deuterium Engine Power Core Light Nuclear Core Propulsion Light Treads Treads Light Treads Leg Aluminum Leg Wheel Wheel Utility Hacking Suite Device Improved Heat Sink Storage High-capacity Storage Unit Hackware Hacking Suite Protection Hardened Light Armor Plating Weapon Heavy Machine Gun Energy Gun Particle Gun Energy Cannon Particle Cannon Ballistic Gun Heavy Machine Gun Ballistic Cannon Flak Cannon Launcher Rocket Launcher Slashing Weapon Chainsword Special Melee Weapon Datajack Build | -11 -10 -10 -9 -9 -9 -8 -8 -8 -8 -8 ------- Run | Yrd Mat Min Mat Min Exi Min Mat Gar Mat Gar Slots Evolved 4 | . . . 2 . . . 2 . . . Power . | . . . . . . . . . . . Propulsion 2 | . . . 1 . . . 1 . . . Utility 1 | . . . 1 . . . . . . . Weapon 1 | . . . . . . . 1 . . . Parts Attached 142 | 7 24 5 27 5 1 2 4 32 18 17 Power 22 | 1 4 . 5 1 . . . 5 3 3 Engine 16 | 1 4 . 5 . . . . 1 3 2 Core 6 | . . . . 1 . . . 4 . 1 Reactor . | . . . . . . . . . . . Propulsion 54 | 2 10 . 8 1 . . 1 8 13 11 Treads 45 | . 6 . 8 1 . . 1 5 13 11 Leg 3 | . . . . . . . . 3 . . Wheel 6 | 2 4 . . . . . . . . . Hover . | . . . . . . . . . . . Flight . | . . . . . . . . . . . Utility 27 | 2 7 2 8 2 1 . . 5 . . Device 14 | 1 2 1 7 1 . . . 2 . . Storage 5 | 1 2 1 . . 1 . . . . . Processor . | . . . . . . . . . . . Hackware 2 | . . . . . . . . 2 . . Protection 6 | . 3 . 1 1 . . . 1 . . Artifact . | . . . . . . . . . . . Weapon 39 | 2 3 3 6 1 . 2 3 14 2 3 Energy Gun 7 | . . . 2 1 . . 1 3 . . Energy Cannon 2 | . . . 1 . . . 1 . . . Ballistic Gun 22 | 2 3 2 3 . . . 1 7 1 3 Ballistic Cannon 1 | . . . . . . . . 1 . . Launcher 5 | . . 1 . . . 2 . 2 . . Special Weapon . | . . . . . . . . . . . Impact Weapon . | . . . . . . . . . . . Slashing Weapon 1 | . . . . . . . . . 1 . Piercing Weapon . | . . . . . . . . . . . Special Melee Weapon 1 | . . . . . . . . 1 . . Unidentified Prototypes 4 | . . 1 3 . . . . . . . Parts Lost 31 | . 1 . 3 2 . . . 16 3 6 Power 8 | . 1 . 1 1 . . . 2 2 1 Propulsion 11 | . . . 1 . . . . 8 1 1 Utility 3 | . . . . 1 . . . 2 . . Weapon 9 | . . . 1 . . . . 4 . 4 Highest Loss Streak 5 | . 1 . 2 2 . . . 5 2 2 To Critical Strikes . | . . . . . . . . . . . Average Slot Usage (%) 98 | . 100 100 98 99 100 100 100 93 99 99 Engine 6 | . 14 14 10 1 . . . 2 6 8 Core 3 | . . . . 8 11 11 9 5 2 . Treads 29 | . 16 28 32 33 33 33 36 21 30 35 Leg 2 | . . . . . . . . 9 4 . Wheel 1 | . 11 . . . . . . . . . Device 5 | . 7 7 11 11 11 11 9 6 . . Storage 10 | . 14 14 11 11 11 11 9 9 9 9 Hackware 7 | . . . . . . . . 8 18 18 Protection 5 | . 6 7 10 11 11 11 9 2 . . Energy Gun 3 | . . . 2 8 11 5 9 7 . . Energy Cannon 3 | . . . 3 11 11 5 7 4 . . Ballistic Gun 17 | . 28 27 16 2 . . 9 10 24 26 Peak Build Rating 41 | 7 10 18 26 22 22 22 25 36 39 41 Average Rating 25 | 4 8 14 20 20 21 21 24 25 37 34 On Entrance 20 | . 7 10 18 22 20 22 21 25 36 39 Naked Turns . | . . . . . . . . . . . Heaviest Build 63 | 12 32 48 61 61 58 58 61 63 62 62 Greatest Support 87 | 26 40 40 63 63 60 60 80 80 82 87 Greatest Overweight (x) 4 | 1 1 1 1 . . . . 4 1 . Average Overweight (x) . | . . . . . . . . . . . Largest Inventory Capacity 20 | 8 15 20 20 20 20 20 20 20 20 20 Average Capacity 18 | 7 12 15 20 20 20 20 20 20 20 20 Most Carried 20 | 5 15 16 20 20 20 20 19 20 20 20 Average Carried 17 | 2 10 15 18 19 19 20 18 16 19 19 Final Capacity 20 | 8 15 20 20 20 20 20 20 20 20 20 Final Carried 20 | 4 15 16 20 20 20 20 19 19 20 20 Class Distribution -------------------- 44% | Mutant 31% | Scavenger-Skirmisher 14% | Scavenger-Mutant 6% | Skirmisher Dominant Class ---------------- Mutant | -10/Materials Scavenger-Mutant | -10/Mines Mutant | -9/Materials Mutant | -9/Mines Mutant | -9/Exiles Mutant | -8/Mines Skirmisher | -8/Materials Skirmisher | -8/Garrison Scavenger-Skirmisher | -8/Materials Scavenger-Skirmisher | -8/Garrison Resources | -11 -10 -10 -9 -9 -9 -8 -8 -8 -8 -8 ----------- Run | Yrd Mat Min Mat Min Exi Min Mat Gar Mat Gar Matter Collected 3811 | 282 505 81 559 60 20 . . 595 890 819 Remotely . | . . . . . . . . . . . Salvage Created 4964 | 89 458 23 1311 75 . 33 . 428 1478 1069 Parts 313 | 6 32 5 83 3 . 7 . 25 100 52 Haulers Intercepted 12 | . 2 . 5 . . . . . 5 . Recyclers Shooed 4 | 1 1 . 1 1 . . . . . . Parts Field Recycled . | . . . . . . . . . . . Retrieved Matter . | . . . . . . . . . . . Parts Self-Destructed . | . . . . . . . . . . . Prevented . | . . . . . . . . . . . Kills | -11 -10 -10 -9 -9 -9 -8 -8 -8 -8 -8 ------- Run | Yrd Mat Min Mat Min Exi Min Mat Gar Mat Gar Combat Hostiles Destroyed 101 | . 10 3 24 2 . 3 . 14 21 24 Melee 9 | . . . . . . . . . 9 . Guns 76 | . 10 1 19 1 . . . 9 12 24 Cannons 7 | . . . 5 1 . . . 1 . . AOE 9 | . . 2 . . . 3 . 4 . . Classes Destroyed 15 | 2 3 . 4 1 . . . 2 3 . Worker 6 | . . . . 1 . 2 . . 3 . Builder 5 | . . . . . . . . . 5 . Tunneler 1 | 1 . . . . . . . . . . Hauler 12 | . 2 . 5 . . . . . 5 . Recycler 2 | 1 . . . . . . . . 1 . Mechanic 2 | . . . 1 . . . . . 1 . Operator 2 | . . . 2 . . . . . . . Watcher 3 | . . . . . . . . . 3 . Swarmer 24 | . 3 3 3 . . 3 . 4 5 3 Grunt 42 | . 7 . 14 1 . . . 5 7 8 Duelist 2 | . . . 2 . . . . . . . Sentry 24 | . . . 5 . . . . 2 6 11 Specialist 2 | . . . . . . . . . 2 . Hunter 5 | . . . . . . . . 2 1 2 Behemoth 1 | . . . . . . . . 1 . . Best Kill Streak 8 | 2 3 3 8 1 . 3 . 4 8 6 Combat Bots Only 8 | . 3 3 8 1 . 3 . 4 4 6 Max Kills in Single Turn 2 | 1 1 1 2 1 . 2 . 2 2 2 Gunslinging 1 | . . . . . . . . . 1 1 Exploded 2 | . . 1 . . . 2 . 2 . . Melee 1 | . . . . . . . . . 1 . Uniques/NPCs Destroyed 1 | . . . . 1 . . . . . . YI-UF0 (-9/Mines) Combat | -11 -10 -10 -9 -9 -9 -8 -8 -8 -8 -8 -------- Run | Yrd Mat Min Mat Min Exi Min Mat Gar Mat Gar Hostile Shots Fired 643 | . 83 11 97 28 . 5 . 171 115 133 Missed 172 | . 22 1 21 13 . 1 . 47 22 45 Damage Taken 7699 | . 697 83 1072 692 . 24 . 2316 1302 1513 Core 892 | . 123 8 171 30 . . . 282 135 143 Absorbed by Shields . | . . . . . . . . . . . Redirected to Shielding 3 | . 3 . . . . . . . . . Regen/Repaired (Parts) 296 | . 16 . 160 . . . . . 120 . Core Remaining (%) 65 | 100 . 47 . . . 49 . . . . Volleys Fired 344 | 3 59 8 82 13 . 7 . 62 52 58 Largest 3 | 2 2 1 2 2 . 2 . 3 3 3 Hottest 177 | 40 40 30 130 133 . 133 . 177 90 90 Shots Fired 801 | 6 120 8 164 26 . 13 . 138 150 176 Gun 698 | 6 120 6 137 13 . 2 . 88 150 176 Cannon 85 | . . . 27 13 . 2 . 43 . . Launcher 18 | . . 2 . . . 9 . 7 . . Special . | . . . . . . . . . . . Kinetic 634 | 6 120 6 115 10 . . . 51 150 176 Thermal 149 | . . . 49 16 . 4 . 80 . . Explosive 18 | . . 2 . . . 9 . 7 . . Electromagnetic . | . . . . . . . . . . . Robot Hit Streak 16 | 2 12 16 14 6 . 4 . 13 12 11 Robot Miss Streak 6 | 1 3 1 3 2 . 1 . 4 6 5 Penetration Max 1 | . . . . . . . . . . 1 Secondary Targets 13 | . 2 . 1 . . . . . 4 6 Max Gunslinging Chain 1 | . 1 . 1 . . . . . 1 1 Shots Hit Robots 520 | 3 84 6 116 16 . 4 . 96 99 96 Core Hits 213 | 2 26 4 49 6 . 4 . 35 46 41 Critical Kills 4 | 2 . . . . . . . . 1 1 Critical Parts Destroyed 1 | . 1 . . . . . . . . . Critical Strikes 14 | 2 1 . 1 . . . . 2 7 1 Burn 3 | . . . 1 . . . . 2 . . Destroy 5 | 2 1 . . . . . . . 1 1 Sever 6 | . . . . . . . . . 6 . Melee Attacks 52 | . . . . . . . . . 52 . Impact . | . . . . . . . . . . . Slashing 52 | . . . . . . . . . 52 . Piercing . | . . . . . . . . . . . Sneak Attacks 6 | . . . . . . . . . 6 . Combat Hostiles 1 | . . . . . . . . . 1 . Follow-up Attacks . | . . . . . . . . . . . Damage Inflicted 10349 | 22 774 120 1724 331 . 290 . 2056 2932 2100 Guns 6966 | 22 774 26 1320 164 . 14 . 977 1569 2100 Cannons 1293 | . . . 376 125 . 21 . 771 . . Explosions 657 | . . 94 . . . 255 . 308 . . Melee 1336 | . . . . . . . . . 1336 . Ramming 97 | . . . 28 42 . . . . 27 . Kinetic 6424 | 22 774 26 1047 112 . . . 774 1569 2100 Thermal 1835 | . . . 649 177 . 35 . 974 . . Explosive 657 | . . 94 . . . 255 . 308 . . Electromagnetic . | . . . . . . . . . . . Impact . | . . . . . . . . . . . Slashing 1336 | . . . . . . . . . 1336 . Piercing . | . . . . . . . . . . . Highest Corruption 3 | . 1 1 . . . . . . 2 3 Average Corruption 1 | . 1 1 . . . . . . 2 2 Corruption Purged . | . . . . . . . . . . . Corruption Blocked . | . . . . . . . . . . . Effects 27 | . 7 4 . . . . . . 4 12 Message Errors 3 | . 1 1 . . . . . . . 1 Matter Fused 5 | . 1 . . . . . . . 1 3 Heat Flow Errors 3 | . 1 1 . . . . . . . 1 Energy Discharges 5 | . 1 1 . . . . . . 2 1 Data Loss (minor) 5 | . . 1 . . . . . . 1 3 Data Loss (major) 1 | . . . . . . . . . . 1 Misfires 4 | . 2 . . . . . . . . 2 Alerts 1 | . 1 . . . . . . . . . Overload Shots . | . . . . . . . . . . . Overflow Damage 185 | . . 2 . . . 51 . 38 94 . Projectiles . | . . . . . . . . . . . Explosions 91 | . . 2 . . . 51 . 38 . . Melee 94 | . . . . . . . . . 94 . Knockbacks 1 | . . . . 1 . . . . . . Impact 1 | . . . . 1 . . . . . . Kinetic . | . . . . . . . . . . . Secondary . | . . . . . . . . . . . Self-Inflicted Damage 98 | . . . . . . . . 98 . . Shots 2 | . . . . . . . . 2 . . Rammed 6 | . . . 3 2 . . . . 1 . Targets Rammed 7 | . . . 3 2 . . . . 2 . Kicked . | . . . . . . . . . . . Crushed 1 | . . . . . . . . . 1 . Highest Temperature 375 | . 164 207 251 84 . 42 . 375 120 251 Average Temperature 55 | . 26 80 74 40 . 24 . 100 36 43 Received Heat Transfer 2061 | . 354 . 375 6 . . . 465 396 465 Effects 4 | . . . . . . . . 4 . . Interference 3 | . . . . . . . . 3 . . Damage (minor) 1 | . . . . . . . . 1 . . Siege Activations . | . . . . . . . . . . . Robots Corrupted . | . . . . . . . . . . . Combat Hostiles . | . . . . . . . . . . . Parts Fried . | . . . . . . . . . . . Impact Corruptions . | . . . . . . . . . . . Robots Melted . | . . . . . . . . . . . Combat Hostiles . | . . . . . . . . . . . Parts Melted 5 | . . . 4 . . . . . 1 . Heat Transferred 3959 | . . . 1406 333 . 74 . 2146 . . Parts Sabotaged . | . . . . . . . . . . . Parts Stolen . | . . . . . . . . . . . Parts Stripped . | . . . . . . . . . . . Power Chain Reactions . | . . . . . . . . . . . Alert | -11 -10 -10 -9 -9 -9 -8 -8 -8 -8 -8 ------- Run | Yrd Mat Min Mat Min Exi Min Mat Gar Mat Gar Peak Influence 842 | 10 227 128 437 126 . 148 57 498 404 842 Initial 262 | . 6 30 49 126 . . 57 39 242 262 Average 205 | 4 107 125 143 53 . 37 57 300 185 572 Maximum Alert Level 3 | . 1 . 2 . . . . 2 2 3 Low Security (%) 64 | 100 88 100 74 100 . 100 100 35 66 . Level 1 19 | . 11 . 18 . . . . 19 32 27 Level 2 12 | . . . 7 . . . . 45 1 39 Level 3 3 | . . . . . . . . . . 32 Level 4 . | . . . . . . . . . . . Level 5 . | . . . . . . . . . . . High Security . | . . . . . . . . . . . Max Security . | . . . . . . . . . . . Squads Dispatched 8 | . 2 . 2 . . . . . 4 . Investigation 3 | . 2 . . . . . . . 1 . Extermination . | . . . . . . . . . . . Reinforcement 5 | . . . 2 . . . . . 3 . Assault . | . . . . . . . . . . . Garrison . | . . . . . . . . . . . Intercept . | . . . . . . . . . . . Searches Triggered . | . . . . . . . . . . . Construction Impeded . | . . . . . . . . . . . Haulers Reinforced . | . . . . . . . . . . . Active Scanning Responses . | . . . . . . . . . . . Cargo Convoy Interrupts . | . . . . . . . . . . . Stealth | -11 -10 -10 -9 -9 -9 -8 -8 -8 -8 -8 --------- Run | Yrd Mat Min Mat Min Exi Min Mat Gar Mat Gar Distress Signals 9 | . 3 . 3 . . . . . 3 . Communications Jammed . | . . . . . . . . . . . Distress Signals . | . . . . . . . . . . . Times Spotted 148 | . 20 3 39 8 . 3 . 16 33 26 Peak Tracking Total 8 | . 6 3 8 3 . 2 . 5 5 6 Tactical Retreats 11 | . 2 . 3 2 . . . 2 2 . Traps | -11 -10 -10 -9 -9 -9 -8 -8 -8 -8 -8 ------- Run | Yrd Mat Min Mat Min Exi Min Mat Gar Mat Gar Traps Triggered 11 | . 2 . 1 . . . . 2 4 2 Indirectly . | . . . . . . . . . . . Trap Hack Attempts . | . . . . . . . . . . . Triggered . | . . . . . . . . . . . Disarmed . | . . . . . . . . . . . Reprogrammed 4 | . 4 . . . . . . . . . Reused 1 | . 1 . . . . . . . . . Traps Extracted . | . . . . . . . . . . . Installed . | . . . . . . . . . . . Triggered 1 | . 1 . . . . . . . . . Machines | -11 -10 -10 -9 -9 -9 -8 -8 -8 -8 -8 ---------- Run | Yrd Mat Min Mat Min Exi Min Mat Gar Mat Gar Machines Disabled 11 | . . . . . . 2 . 3 4 2 Max in Single Turn 2 | . . . . . . 2 . 2 2 1 Garrison Relay 1 | . . . . . . . . . . 1 Phase Generator 1 | . . . . . . . . 1 . . Machines Repaired . | . . . . . . . . . . . Machines Dismantled . | . . . . . . . . . . . Machines Sabotaged . | . . . . . . . . . . . Overloaded Fab Kills . | . . . . . . . . . . . Hacking | -11 -10 -10 -9 -9 -9 -8 -8 -8 -8 -8 --------- Run | Yrd Mat Min Mat Min Exi Min Mat Gar Mat Gar Machines Accessed 39 | . 9 1 8 . 2 1 1 1 14 2 Terminals 27 | . 7 . 6 . . 1 . 1 10 2 Fabricators . | . . . . . . . . . . . Repair Stations 4 | . 1 . 2 . . . . . 1 . Recycling Units 2 | . 1 . . . . . . . 1 . Scanalyzers 1 | . . . . . . . . . 1 . Garrison Access 2 | . . . . . . . 1 . 1 . Total Hacks 139 | . 33 1 29 . 2 4 1 3 61 5 Successful 92 | . 24 1 18 . 2 1 1 1 41 3 Failed 45 | . 8 . 11 . . 3 . 2 19 2 Catastrophic 3 | . . . . . . . . . 2 1 Database Lockouts 2 | . 1 . . . . . . . 1 . Manual 74 | . 20 . 19 . 1 4 . 3 25 2 Terminals 94 | . 26 . 24 . . 4 . 3 32 5 Fabricators . | . . . . . . . . . . . Repair Stations 13 | . 4 . 5 . . . . . 4 . Recycling Units 7 | . 3 . . . . . . . 4 . Scanalyzers 20 | . . . . . . . . . 20 . Garrison Access 2 | . . . . . . . 1 . 1 . Terminal Hacks 30 | . 8 1 5 . 2 1 . 1 9 3 Record 1 | . . . . . 1 . . . . . Part Schematic 1 | . 1 . . . . . . . . . Robot Analysis 3 | . 1 . . . . . . . 2 . Prototype ID Bank 4 | . 2 . 1 . . . . . 1 . Open Door 2 | . . 1 . . . . . . . 1 Level Access Points 1 | . . . . . . 1 . . . . Emergency Access Points 1 | . . . . . . . . . . 1 Machine Index 1 | . . . . . . . . . 1 . Terminal Index 3 | . 1 . 1 . . . . . 1 . Alert Level 2 | . . . 1 . . . . . 1 . Unreport Threat 2 | . . . 1 . . . . . 1 . Reprogram Traps 1 | . 1 . . . . . . . . . Security Status 2 | . . . 1 . . . . . 1 . Registered Components 1 | . 1 . . . . . . . . . Zone Layout 2 | . 1 . . . . . . . 1 . Garrison Registry 2 | . . . . . . . . 1 . 1 Derelict Proto ID Bank 1 | . . . . . 1 . . . . . Fabricator Hacks . | . . . . . . . . . . . Repair Station Hacks 11 | . 3 . 4 . . . . . 4 . Scan Component 6 | . 2 . 2 . . . . . 2 . Repair 5 | . 1 . 2 . . . . . 2 . Recycling Unit Hacks 4 | . 1 . . . . . . . 3 . Process 1 | . . . . . . . . . 1 . Report Inventory 2 | . 1 . . . . . . . 1 . Retrieve Matter 1 | . . . . . . . . . 1 . Scanalyzer 16 | . . . . . . . . . 16 . Insert Component 6 | . . . . . . . . . 6 . Analyze 10 | . . . . . . . . . 10 . Garrison Access Hacks 2 | . . . . . . . 1 . 1 . Unlock Access 2 | . . . . . . . 1 . 1 . Unauthorized Hacks 29 | . 12 . 9 . . . . . 8 . Terminals 27 | . 10 . 9 . . . . . 8 . Assimilate 2 | . 1 . 1 . . . . . . . Botnet 8 | . 3 . 3 . . . . . 2 . Operators 1 | . 1 . . . . . . . . . Skim 16 | . 5 . 5 . . . . . 6 . Fabricators . | . . . . . . . . . . . Repair Stations . | . . . . . . . . . . . Recycling Units 2 | . 2 . . . . . . . . . Reject 1 | . 1 . . . . . . . . . Recyclers 1 | . 1 . . . . . . . . . Scanalyzers . | . . . . . . . . . . . Garrison Access . | . . . . . . . . . . . Data Cores Recovered 1 | . . . 1 . . . . . . . Used 1 | . . . 1 . . . . . . . Hacking Detections 29 | . 7 . 7 . . 1 1 1 11 1 Full Trace Events 3 | . . . . . . . . 1 1 1 Feedback Events 1 | . . . . . . . . . . 1 Corruption 1 | . . . . . . . . . . 1 Feedback Blocked . | . . . . . . . . . . . Robot Schematics Acquired . | . . . . . . . . . . . Robots Built . | . . . . . . . . . . . Authchips . | . . . . . . . . . . . Time . | . . . . . . . . . . . Total Robot Build Rating . | . . . . . . . . . . . Part Schematics Acquired 6 | . 1 . . . . . . . 5 . Parts Built . | . . . . . . . . . . . Authchips . | . . . . . . . . . . . Time . | . . . . . . . . . . . Total Part Build Rating . | . . . . . . . . . . . Parts Repaired 5 | . 1 . 2 . . . . . 2 . Time 130 | . 26 . 52 . . . . . 52 . Parts Recycled . | . . . . . . . . . . . Recycled Matter 107 | . . . . . . . . . 107 . Retrieved Matter 266 | . . . . . . . . . 266 . Retrieved Components . | . . . . . . . . . . . Parts Scanalyzed 5 | . . . . . . . . . 5 . Part Schematics Acquired 5 | . . . . . . . . . 5 . Parts Damaged 1 | . . . . . . . . . 1 . Bothacking | -11 -10 -10 -9 -9 -9 -8 -8 -8 -8 -8 ------------ Run | Yrd Mat Min Mat Min Exi Min Mat Gar Mat Gar Used RIF Installer 3 | . . . . . . . . 1 . 2 Coupler Efficiency 1 | . . . . . . . . . . 1 Hotswap 1 | . . . . . . . . . . 1 Robots Hacked . | . . . . . . . . . . . Non-combat . | . . . . . . . . . . . Combat . | . . . . . . . . . . . Robot Hacks Applied . | . . . . . . . . . . . Relay Couplers Released 8 | . . . . . . . . . . 8 Machine Destruction 5 | . . . . . . . . . . 5 Programmers 3 | . . . . . . . . . . 3 Fabnet Peak Effective % . | . . . . . . . . . . . Robots Rewired 2 | . . . . . . . . . . 2 Allies Hacked . | . . . . . . . . . . . Hacks Repelled . | . . . . . . . . . . . Allies | -11 -10 -10 -9 -9 -9 -8 -8 -8 -8 -8 -------- Run | Yrd Mat Min Mat Min Exi Min Mat Gar Mat Gar Total Allies 6 | . 1 . . 3 . . . . . 2 Largest Group 3 | . 1 . . 3 . . . . . 2 Highest-Rated Group 45 | . 10 . . 40 . . . . . 45 Highest-Rated Ally 25 | . 10 . . 16 . . . . . 25 Total Orders 4 | . 2 . . 1 . . . . . 1 STAY 3 | . 1 . . 1 . . . . . 1 FOLLOW 1 | . 1 . . . . . . . . . Ally Attacks 28 | . . . . 27 . . . . . 1 Total Damage 338 | . . . . 307 . . . . . 31 Kills 6 | . . . . 5 . . . . . 1 Allies Corrupted 1 | . . . . . . . . . . 1 Allies Melted . | . . . . . . . . . . . Intel | -11 -10 -10 -9 -9 -9 -8 -8 -8 -8 -8 ------- Run | Yrd Mat Min Mat Min Exi Min Mat Gar Mat Gar Robot Analysis Total 3 | . 1 . . . . . . . 2 . Derelict Logs Recovered 3 | . . . . 3 . . . . . . Drone Launches . | . . . . . . . . . . . Drone Recoveries . | . . . . . . . . . . . Exploration | -11 -10 -10 -9 -9 -9 -8 -8 -8 -8 -8 ------------- Run | Yrd Mat Min Mat Min Exi Min Mat Gar Mat Gar Turns Passed 8154 | 61 870 244 1215 964 486 225 45 980 2149 915 Spaces Moved 4137 | 45 511 127 533 571 302 127 24 433 1026 438 Core 2 | 2 . . . . . . . . . . Treads 3463 | . 203 127 533 571 302 127 24 267 871 438 Legs 321 | . . . . . . . . 166 155 . Wheels 351 | 43 308 . . . . . . . . . Hover . | . . . . . . . . . . . Flight . | . . . . . . . . . . . Fastest Speed 50 | 50 90 160 160 160 160 160 160 160 156 156 Average Speed 156 | 84 118 169 162 160 160 160 160 174 163 158 Slowest Speed 400 | 95 160 240 240 160 160 160 160 400 240 162 Overloaded Moves . | . . . . . . . . . . . Propulsion Burnouts . | . . . . . . . . . . . Robots Hopped . | . . . . . . . . . . . Cave-ins Triggered . | . . . . . . . . . . . Exploration Rate (%) 48 | 3 81 21 50 96 71 41 3 38 81 51 Regions Visited 10 Branch Regions 4 Pre-discovered Areas 5 | . . . 2 1 1 . . . 1 . Known Exits Taken 5 | . . 1 1 . . 1 1 . 1 . Unknown Exits Taken 4 | 1 1 . . 1 1 . . . . . Scrap Searched 4 | . . 1 . 3 . . . . . . Spaces Dug 41 | . . . . . . 21 . . 20 . Terrain Destroyed 240 | . . 17 . 1 . 51 . 136 34 1 Melee 11 | . . . . . . . . . 11 . Projectile 25 | . . . . 1 . . . . 23 1 AOE 204 | . . 17 . . . 51 . 136 . . Terrain Rammed . | . . . . . . . . . . . Walls Destroyed . | . . . . . . . . . . . Machines Disabled . | . . . . . . . . . . . Actions | -11 -10 -10 -9 -9 -9 -8 -8 -8 -8 -8 --------- Run | Yrd Mat Min Mat Min Exi Min Mat Gar Mat Gar Total 5100 | 60 677 151 734 593 306 135 29 539 1331 545 Wait 236 | . 49 4 50 . . . . 2 127 4 Move 4129 | 44 510 126 532 570 301 126 24 432 1026 438 Hop . | . . . . . . . . . . . Pick Up 88 | 6 20 3 20 2 1 . 1 6 25 4 Fast Attach 23 | 5 . 1 4 . . . . 6 5 2 Attach 29 | 2 1 . 5 2 . . 2 9 4 4 Detach 1 | . . . 1 . . . . . . . Swap 90 | . 23 4 18 3 1 2 2 17 9 11 Drop 87 | . 15 5 19 1 3 . . 3 29 12 Fire 344 | 3 59 8 82 13 . 7 . 62 52 58 Melee 52 | . . . . . . . . . 52 . Ram . | . . . . . . . . . . . Kick . | . . . . . . . . . . . Crush 7 | . . . 3 2 . . . . 2 . Escape Stasis 2 | . . . . . . . . 2 . . Rewire 12 | . . . . . . . . . . 12 Trap . | . . . . . . . . . . . Miscellaneous . | . . . . . . . . . . . Route ------- -11/Scrapyard -10/Materials (discovered 6 exits: *Mat x3 / *Min x2 / Sub) -10/Mines (discovered 3 exits: *Mat x2 / Sub) -9/Materials (discovered 5 exits: Mat x3 / *Min x2) -9/Mines (discovered 4 exits: *Mat x2 / *Exi / [*Zio]) -9/Exiles -8/Mines (discovered 2 exits: *Mat x2) -8/Materials (discovered 3 exits: Fac / Sto / Gar) -8/Garrison (discovered 4 exits: *Mat x4) -8/Materials (discovered 5 exits: *Fac x3 / *Sto / Gar) -8/Garrison (discovered 3 exits: *Fac x3) History --------- Turn | Location | Event 14 | -11/Scrapyard | Discovered new exit (range 16) 62 | -11/Scrapyard | Entered Materials 91 | -10/Materials | Discovered new exit (range 4) 238 | -10/Materials | Discovered new exit (range 10) 304 | -10/Materials | Central database locked down 320 | -10/Materials | Build established: Mutant 420 | -10/Materials | Discovered new exit (range 16) 549 | -10/Materials | Discovered new exit (range 8) 652 | -10/Materials | Identified exit to Subcaves 694 | -10/Materials | Learned location of 2 exits from Mines 711 | -10/Materials | Repaired Seismic Detector 728 | -10/Materials | Loaded intel: 30 machine locations 763 | -10/Materials | Learned location of 1 exit from Storage 767 | -10/Materials | Learned 4 Recycling zone layouts 781 | -10/Materials | Learned 2 Mines zone layouts 806 | -10/Materials | Identified exit to Materials 932 | -10/Materials | Entered Mines 939 | -10/Mines | Core integrity fell below 50% 993 | -10/Mines | Found the Drone Emporium 1000 | -10/Mines | Found Prototype Device 1055 | -10/Mines | Found a damaged Exp. Sensor Array with a note attached 1059 | -10/Mines | Found Prototype Device 1059 | -10/Mines | Identified Exp. Sensor Array 1159 | -10/Mines | Discovered exit to Materials (range 8) 1176 | -10/Mines | Entered Materials 1176 | -9/Materials | Evolved 2 slots: Propulsion x1, Utility x1 1177 | -9/Materials | Identified Sensor Drone Bay 1370 | -9/Materials | Repaired Lgt. Treads? 1490 | -9/Materials | Repaired Lgt. Treads 2007 | -9/Materials | Destroyed 8 combat bots 2205 | -9/Materials | Identified exit to Mines 2205 | -9/Materials | Identified exit to Materials 2276 | -9/Materials | Learned location of Zion (-7) 2303 | -9/Materials | Learned location of 1 exit from Materials 2311 | -9/Materials | Learned 4 Recycling zone layouts 2391 | -9/Materials | Entered Mines 2429 | -9/Mines | A Derelict revealed a hidden shortcut to a safe place 2438 | -9/Mines | Discovered exit to Materials (range 15) 2542 | -9/Mines | Core integrity fell below 50% 2544 | -9/Mines | Destroyed YI-UF0 2584 | -9/Mines | Discovered exit to Materials (range 10) 2611 | -9/Mines | Found DCF Scrap (10 items) 2755 | -9/Mines | Assisted by bots powering up and referring to "LRC-V3" 2805 | -9/Mines | Learned Materials terminal intel 2824 | -9/Mines | Learned Materials trap positions 2888 | -9/Mines | Found a hidden stash of uninstalled traps 3348 | -9/Mines | Deemed a non-threat by the Exiles lab entrance 3348 | -9/Mines | Discovered new exit (range 5) 3355 | -9/Mines | Entered Exiles 3399 | -9/Exiles | Met 8R-AWN 3419 | -9/Exiles | Met EX-HEX 3464 | -9/Exiles | Met EX-BIN 3487 | -9/Exiles | Aligned with FarCom system 3488 | -9/Exiles | Given EX-Vault access code 3528 | -9/Exiles | Opened EX-Vault 3539 | -9/Exiles | Found YOLO Cannon 3573 | -9/Exiles | Warned to stay clear of 0b10 Research branches 3620 | -9/Exiles | Met EX-DEC 3823 | -9/Exiles | Discovered new exit (range 12) 3841 | -9/Exiles | Left Exiles lab with YOLO Cannon 3841 | -9/Exiles | Entered Mines 4066 | -8/Mines | Entered Materials 4066 | -8/Materials | Evolved 2 slots: Propulsion x1, Weapon x1 4067 | -8/Materials | Identified exit to Storage 4068 | -8/Materials | Identified exit to Factory 4069 | -8/Materials | Loaded intel: 26 trap records 4070 | -8/Materials | Loaded intel: 12 terminal locations 4111 | -8/Materials | Identified exit to Garrison 4111 | -8/Materials | Entered Garrison 4153 | -8/Garrison | Triggered checkpoint 4301 | -8/Garrison | Triggered checkpoint 4344 | -8/Garrison | Spotted B-75 Beast 4395 | -8/Garrison | Destroyed B-75 Beast 4419 | -8/Garrison | Build established: Skirmisher 4425 | -8/Garrison | Lost 5 parts (1p2n2u) 4460 | -8/Garrison | Phase Generator disabled 4516 | -8/Garrison | Discovered new exit (range 13) 4555 | -8/Garrison | Triggered checkpoint 4611 | -8/Garrison | Discovered new exit (range 24) 4611 | -8/Garrison | Discovered new exit (range 74) 4611 | -8/Garrison | Discovered new exit (range 64) 4611 | -8/Garrison | Discovered new exit (range 56) 4613 | -8/Garrison | Lost 4 parts (2n2w) 4667 | -8/Garrison | Installed Relay Interface Framework 4707 | -8/Garrison | Core integrity fell below 50% 4743 | -8/Garrison | Lost 5 parts (1p3n1w) 5008 | -8/Garrison | Build established: Scavenger-Skirmisher 5091 | -8/Garrison | Entered Materials 5149 | -8/Materials | Central database locked down 5812 | -8/Materials | Discovered exit to Factory (range 15) 6332 | -8/Materials | Repaired Lgt. Treads 6381 | -8/Materials | Repaired Lgt. Treads 6522 | -8/Materials | Learned location of Recycling (-8) 6561 | -8/Materials | Learned 8 Factory zone layouts 6592 | -8/Materials | Learned location of 1 exit from Extension 6599 | -8/Materials | Discovered exit to Factory (range 5) 6615 | -8/Materials | Learned 2 Lower Caves zone layouts 6649 | -8/Materials | Learned 4 Factory zone layouts 6682 | -8/Materials | Learned Factory security intel 6894 | -8/Materials | Build established: Scavenger-Mutant 7081 | -8/Materials | Discovered exit to Factory (range 16) 7185 | -8/Materials | Discovered exit to Storage (range 7) 7240 | -8/Materials | Identified exit to Garrison 7240 | -8/Materials | Entered Garrison 7282 | -8/Garrison | Core integrity fell below 20% 7300 | -8/Garrison | Triggered checkpoint 7348 | -8/Garrison | Expanded RIF knowledge: Coupler Efficiency 7495 | -8/Garrison | Garrison Relay disabled 7618 | -8/Garrison | Triggered checkpoint 7662 | -8/Garrison | Discovered exit to Factory (range 27) 7662 | -8/Garrison | Discovered exit to Factory (range 43) 7662 | -8/Garrison | Discovered exit to Factory (range 46) 7741 | -8/Garrison | Build established: Scavenger-Skirmisher 7750 | -8/Garrison | Triggered checkpoint 7857 | -8/Garrison | Triggered checkpoint 7946 | -8/Garrison | Expanded RIF knowledge: Hotswap 8116 | -8/Garrison | Spotted B-75 Beast 8155 | -8/Garrison | Destroyed by B-75 Beast with Magnetic Acceleration Cannon Last Messages --------------- 08004_ Attempting to rewire QQ-99C(l). 08006_ QQ-99C(l) rewired. 08023_ Dropped Imp. Ion Engine. 08025_ Acquired 10 matter. 08049_ System corrupted: Matter fused (-9). 08077_ Slug penetrates Wall. 08100_ System corrupted: FCS attempts to trigger Hvy. Machine Gun. 08100_ System corrupted: Hvy. Machine Gun misfires. 08100_ Machine disabled. 08101_ Slug penetrates Machine. 08106_ Dropped Imp. Ion Engine. 08107_ Acquired Mic. Fission Core. 08118_ Slug penetrates Machine. 08120_ Y-45 Defender springs to life. 08120_ B-75 Beast springs to life. 08143_ Dropped Lgt. Treads. 08152_ Hvy. Machine Gun destroyed. 08153_ Acquired 5 matter. Map ----- +----------------------------------------------------+ | ?????# #???# #???# # ### #????????????????????? | | ?????# #???# #???# # ## #????????????????????? | | ?????# #???# #???# # ## #????????????????????? | | ?????# #####+##### ### ### #????????????????????? | | ?????# ^^ #????????????????????? | | ?????# ^^ #????????????????????? | | ?????# ####+#### #######+##????????????????????? | | ?????# #### ####^ #?????# #?????????????????????? | | ?????# + ##^ #?????# #?????????????????????? | | ?????# ###### ## #?????# #?????????????????????? | | ###### #????# ## #?????# #?????????????????????? | | ## #????# ## #????##+###???????????????????? | | ## ##???# ## #????#!!!!#???????????????????? | | = #####+## ###### !#???????????????????? | | * =*! + #???????????????????? | | [ [ ###### !#???????????????????? | | ## % ###########????#!!!!#???????????????????? | | ^^^^## ! ###????????????######???????????????????? | | ^ #?????????????????????????????????????? | | ^ #?????????????????????????????????????? | | ^ #?????????????????????????????????????? | | ^ #?????????????????############????????? | | ## ###?????????????????#""" %"#????????? | | ## ##################### [!| =! "#????????? | | ! * ; l BB^ * "#????????? | | = =% ; @ BB####^ ["#????????? | | ####+##### ####### # !"#????????? | | """"###+##??# #???# #?????# Y # !"#????????? | | #?# #???# #???# #?????# #### !"#????????? | | ###+#?# #???# #???# #?????# % Y "#????????? | | ??# ### #???# ##### ######### [=![!!"""#????????? | | ??# #???# + + #??# """""""""#????????? | | ??##### #???####### #### #??############????????? | | ??????# #?????????# #??# #??????????????????????? | | ??????# #?????????# ####+########???????????????? | | ??????# #??###????# #???????????????? | | ??????# ####Y###### #???????????????? | | ??????# + ^ ######### < #???????????????? | | ??????# ###### #####"#???????# #???????????????? | | ??????# #????# #???# #???????#####???????????????? | | ??????# #????# ###?# #???????????????????????????? | | ????###+###### =### #???????????????????????????? | | ????# " #???????????????????????????? | | ???##^########= =#####???????????????????????????? | | ???#[ /#?????#!###???????????????????????????????? | | ???#[ /#?????#!#?????????????????????????????????? | | ???#[ /#?????#!#???###???????????????????????????? | | ???#[ /#?????#*#####T####????????????????????????? | | ???#####???### ## #????????????????????????? | | ???????????#"#*## #????????????????????????? | +----------------------------------------------------+ Best States ------------- Heat Dissipation 67 Energy Generation 15 Energy Capacity 800 Matter Stores 300 Matter Capacity 300 Sight Range 16 Robot Scan Range 20 Terrain Scan Range 16 Terrain Scan Density 10 Armor Coverage 150 Utility Shielding 33 Evasion (%) 44 Recoil Reduction 4 Offensive Hacking 20 Item Schematics ----------------- Huge Storage Unit | -10/Materials | Hacked Exp. Sensor Array | -8/Materials | Scanalyzed Scythe | -8/Materials | Scanalyzed Shotgun | -8/Materials | Scanalyzed Hpw. Shotgun | -8/Materials | Scanalyzed Structural Scanner | -8/Materials | Scanalyzed Robot Schematics ------------------ None Fabricated ------------ Nothing Alien Tech Used ----------------- None Achievements -------------- None Challenges ------------ None Game ------ Seed BattleRocketScrapsphere Manual? 0 Play Time 01:23:24 Cumulative 187.6 hours Start 2025.03.11 @ 15:00:33 End 2025.03.11 @ 16:23:22 Sessions 1 Manual Loads 0 Difficulty Rogue Special Mode None Game No. 194 Rogue 194 Adventurer 0 Explorer 0 Win Type - Total 4 Types 4/0/0/0/0/0/0/0/0 Lore% 65 Gallery% 60 Achievement% 57 Wizard Run 0 Options --------- Layout 1 ASCII 0 Keyboard 1 Movement Arrows Keybinds 0 Fullscreen 0 Font 20/Smallcaps Map View 50x35 Zoom Use 0% Tactical HUD 1 Map Filters NONE Filters NONE Steam 1 RUN: 4b351041-8305-4453-b839-973afa948ddb